[Event "Qatar Masters-B 2024"]
[Site "Doha"]
[Date "2024.12.11"]
[Round "8.1"]
[White "Alhassadi, Yousef A."]
[Black "Syed Abdul Khader"]
[Result "1-0"]
[ECO "C45"]
[WhiteElo "2126"]
[BlackElo "1943"]
[Annotator "NA RC"]
[PlyCount "107"]
[EventDate "2024.11.24"]
[EventType "swiss"]
[EventCountry "QAT"]
[SourceTitle "playchess.com"]
[Source "ChessBase"]
[SourceQuality "1"]
[TimeControl "40/5400+30:1800+30"]

1. e4 {[%emt 0:00:03]} e5 {[%emt 0:00:15]} 2. Nf3 {[%emt 0:00:07]} Nc6 {[%emt 0:00:53]} 3. d4 {[%emt 0:00:06]} exd4 {[%emt 0:01:22]} 4. Nxd4 {[%emt 0:00:08]} Bc5 {[%emt 0:00:21]} 5. Nb3 {[%emt 0:00:19]} Bb6 {[%emt 0:00:24]} 6. Nc3 {[%emt 0:00:20]} Nf6 {[%emt 0:00:08]} 7. Bg5 {[%emt 0:00:08]} h6 {[%emt 0:00:21]} 8. Bh4 {[%emt 0:00:08]} O-O {[%emt 0:00:05]} 9. Qe2 {[%emt 0:00:47]} a5 {[%emt 0:00:48]} 10. a4 {[%emt 0:01:05]} Nd4 {[%emt 0:02:05]} 11. Qd3 {[%emt 0:00:46]} Nxb3 {[%emt 0:00:34]} 12. cxb3 {[%emt 0:00:08]} c6 {[%emt 0:01:09]} 13. O-O-O {[%emt 0:00:41]} d5 {[%emt 0:01:39]} 14. Qc2 {[%emt 0:00:14]} Qd6 {[%emt 0:03:56]} 15. Kb1 {[%emt 0:09:14]} d4 {[%emt 0:05:18]} 16. f3 {[%emt 0:19:50]} Nd7 {[%emt 0:25:17]} 17. Bf2 {[%emt 0:37:05]} Qf6 {[%emt 0:03:22]} 18. Na2 {[%emt 0:02:55]} Ne5 {[%emt 0:03:23]} 19. Nc1 {[%emt 0:06:43]} Be6 {[%emt 0:05:14]} 20. Nd3 {[%emt 0:07:59]} Ng6 {[%emt 0:00:48]} 21. h4 {[%emt 0:01:46]} h5 {[%emt 0:01:32]} 22. Be2 {[%emt 0:05:02]} Ba7 {[%emt 0:01:09]} 23. g4 {[%emt 0:00:31]} b5 {[%emt 0:00:33]} 24. gxh5 {[%emt 0:03:26]} Ne5 {[%emt 0:01:35]} 25. Nxe5 {[%emt 0:02:20]} Qxe5 {[%emt 0:00:02]} 26. Rhg1 {[%emt 0:00:56]} bxa4 {[%emt 0:00:16]} 27. Rg5 {[%emt 0:00:19]} Qf4 {[%emt 0:16:22]} 28. Rdg1 {[%emt 0:00:10]} Kh8 {[%emt 0:00:40]} 29. Rxg7 {[%emt 0:01:04]} Bxb3 {[%emt 0:03:29]} 30. Qd3 {[%emt 0:00:12]} c5 {[%emt 0:07:35]} 31. e5 {[%emt 0:00:19]} Qh6 {[%emt 0:00:06]} 32. Qe4 {[%emt 0:00:09]} c4 {[%emt 0:01:09]} 33. e6 {[%emt 0:00:39]} c3 {[%emt 0:01:18]} 34. Bd3 {[%emt 0:00:10]} c2+ {[%emt 0:04:21]} 35. Bxc2 {[%emt 0:00:01]} Bxc2+ {[%emt 0:00:30]} 36. Qxc2 {[%emt 0:00:01]} Rac8 {[%emt 0:02:49]} 37. Qe4 {[%emt 0:01:48]} d3 {[%emt 0:00:27]} 38. Bd4 {[%emt 0:01:10]} Bxd4 {[%emt 0:02:33]} 39. Qxd4 {[%emt 0:00:03]} Rc1+ {[%emt 0:01:44]} 40. Rxc1 {[%emt 0:00:07]} Qxg7 {[%emt 0:00:06]} 41. e7 {[%emt 0:30:31]} Re8 {[%emt 0:31:01]} 42. Qd8 {[%emt 0:00:15]} Qg8 {[%emt 0:00:05]} 43. Rc8 {[%emt 0:01:37]} d2 {[%emt 0:00:23]} 44. Qd4+ f6 {[%emt 0:00:00]} 45. Rxe8 {[%emt 0:00:45]} Qxe8 {[%emt 0:00:01]} 46. Qxf6+ {[%emt 0:00:07]} Kg8 {[%emt 0:00:18]} 47. Qf8+ {[%emt 0:00:07]} Kh7 {[%emt 0:00:02]} 48. Qf5+ {[%emt 0:00:38]} Kg8 {[%emt 0:00:02]} 49. Qg5+ {[%emt 0:00:37]} Kh8 {[%emt 0:00:16]} 50. Qh6+ {[%emt 0:00:27]} Kg8 {[%emt 0:00:05]} 51. Qe6+ {[%emt 0:00:04]} Kh8 {[%emt 0:00:31]} 52. Kc2 {[%emt 0:00:12]} a3 {[%emt 0:00:04]} 53. Qh6+ {[%emt 0:00:43]} Kg8 {[%emt 0:00:02]} 54. Qg6+ {[%emt 0:00:06]} 1-0

[Event "Qatar Masters-B 2024"]
[Site "Doha"]
[Date "2024.12.11"]
[Round "8.2"]
[White "Shermuhammadov, Samandar"]
[Black "Hong, Mingren"]
[Result "1-0"]
[ECO "B40"]
[WhiteElo "2108"]
[BlackElo "1951"]
[Annotator "NA COMBH"]
[PlyCount "65"]
[EventDate "2024.11.24"]
[EventType "swiss"]
[EventCountry "QAT"]
[SourceTitle "playchess.com"]
[Source "ChessBase"]
[SourceQuality "1"]
[TimeControl "40/5400+30:1800+30"]

1. e4 {[%emt 0:00:00]} c5 {[%emt 0:00:05]} 2. Nf3 {[%emt 0:00:03]} e6 {[%emt 0:00:04]} 3. d3 {[%emt 0:00:15]} d5 {[%emt 0:00:08]} 4. c3 {[%emt 0:00:48]} Nc6 {[%emt 0:01:16]} 5. Be2 {[%emt 0:01:13]} Nf6 {[%emt 0:01:29]} 6. e5 {[%emt 0:00:43]} Nd7 {[%emt 0:00:40]} 7. d4 {[%emt 0:00:06]} f6 {[%emt 0:03:35]} 8. exf6 {[%emt 0:01:21]} Nxf6 {[%emt 0:00:14]} 9. O-O {[%emt 0:00:04]} Bd6 {[%emt 0:00:21]} 10. Be3 {[%emt 0:02:23]} cxd4 {[%emt 0:14:53]} 11. cxd4 {[%emt 0:00:13]} O-O {[%emt 0:00:03]} 12. Nc3 {[%emt 0:00:59]} a6 {[%emt 0:00:30]} 13. Rc1 {[%emt 0:00:31]} Bd7 {[%emt 0:00:50]} 14. h3 {[%emt 0:00:24]} Kh8 {[%emt 0:00:51]} 15. Re1 {[%emt 0:00:35]} Rc8 {[%emt 0:04:42]} 16. Bd3 {[%emt 0:00:55]} Ne7 {[%emt 0:03:43]} 17. Ne5 {[%emt 0:01:27]} Bxe5 {[%emt 0:04:01]} 18. dxe5 {[%emt 0:00:16]} Nfg8 {[%emt 0:00:06]} 19. Ne2 {[%emt 0:03:28]} Bb5 {[%emt 0:00:16]} 20. Bxb5 {[%emt 0:01:14]} axb5 {[%emt 0:00:02]} 21. Bc5 {[%emt 0:02:42]} Re8 {[%emt 0:06:43]} 22. Nd4 {[%emt 0:01:17]} Nf5 {[%emt 0:00:47]} 23. Nxf5 {[%emt 0:05:19]} exf5 {[%emt 0:00:04]} 24. Qd3 {[%emt 0:00:31]} Qa5 {[%emt 0:09:15]} 25. b4 {[%emt 0:01:51]} Qxa2 {[%emt 0:00:37]} 26. Qxf5 {[%emt 0:01:43]} b6 {[%emt 0:01:43]} 27. Bd6 {[%emt 0:02:44]} Qa6 {[%emt 0:05:00]} 28. Qf7 {[%emt 0:01:01]} Rxc1 {[%emt 0:03:15]} 29. Rxc1 {[%emt 0:00:08]} Rc8 {[%emt 0:00:26]} 30. Bf8 {[%emt 0:04:40]} Rxc1+ {[%emt 0:03:25]} 31. Kh2 {[%emt 0:00:09]} Rh1+ {[%emt 0:00:14]} 32. Kg3 {[%emt 0:01:35]} Qa3+ {[%emt 0:00:57]} 33. f3 {[%emt 0:00:19]} 1-0

[Event "Qatar Masters-B 2024"]
[Site "Doha"]
[Date "2024.12.11"]
[Round "8.3"]
[White "Zozek Salah Mohammed"]
[Black "Achour, Mohamed Anis"]
[Result "0-1"]
[ECO "E11"]
[WhiteElo "2206"]
[BlackElo "2051"]
[Annotator "RC"]
[PlyCount "86"]
[EventDate "2024.11.24"]
[EventType "swiss"]
[EventCountry "QAT"]
[SourceTitle "playchess.com"]
[Source "ChessBase"]
[SourceQuality "1"]
[TimeControl "40/5400+30:1800+30"]

1. d4 {[%emt 0:00:02]} d5 {[%emt 0:00:06]} 2. Nf3 {[%emt 0:00:12]} Nf6 {[%emt 0:00:04]} 3. c4 {[%emt 0:00:30]} e6 {[%emt 0:00:04]} 4. g3 {[%emt 0:00:04]} Bb4+ {[%emt 0:00:11]} 5. Bd2 {[%emt 0:01:50]} a5 {[%emt 0:00:05]} 6. Bg2 {[%emt 0:00:18]} O-O {[%emt 0:00:06]} 7. O-O {[%emt 0:00:11]} dxc4 {[%emt 0:00:11]} 8. Qc2 {[%emt 0:04:38]} Bxd2 {[%emt 0:00:11]} 9. Nbxd2 {[%emt 0:00:19]} b5 {[%emt 0:00:05]} 10. a4 {[%emt 0:17:12]} c6 {[%emt 0:00:15]} 11. e4 {[%emt 0:00:14]} Na6 {[%emt 0:00:10]} 12. e5 {[%emt 0:08:29]} Nb4 {[%emt 0:00:32]} 13. Qb1 {[%emt 0:00:28]} Nfd5 {[%emt 0:00:18]} 14. Ne4 {[%emt 0:00:01]} h6 {[%emt 0:02:30]} 15. Nd6 {[%emt 0:23:41]} Ba6 {[%emt 0:01:08]} 16. Ra3 {[%emt 0:12:29]} bxa4 {[%emt 0:05:03]} 17. Nd2 {[%emt 0:05:44]} c3 {[%emt 0:13:15]} 18. bxc3 {[%emt 0:00:21]} Bxf1 {[%emt 0:00:23]} 19. Bxf1 {[%emt 0:01:04]} Na6 {[%emt 0:00:40]} 20. c4 {[%emt 0:12:02]} Ndb4 {[%emt 0:02:59]} 21. c5 {[%emt 0:00:15]} Nc7 {[%emt 0:00:49]} 22. N2e4 {[%emt 0:07:15]} Rb8 {[%emt 0:06:00]} 23. Rxa4 {[%emt 0:00:22]} Nb5 {[%emt 0:00:39]} 24. Qd1 {[%emt 0:00:52]} Nd5 {[%emt 0:00:36]} 25. Qa1 {[%emt 0:00:34]} f5 {[%emt 0:05:07]} 26. exf6 {[%emt 0:00:18]} Nxf6 {[%emt 0:00:06]} 27. Qa2 {[%emt 0:03:03]} Nd5 {[%emt 0:06:24]} 28. Nxb5 {[%emt 0:01:07]} cxb5 {[%emt 0:00:05]} 29. Rxa5 {[%emt 0:00:02]} b4 {[%emt 0:00:39]} 30. Ra6 {[%emt 0:00:42]} Ra8 {[%emt 0:01:50]} 31. Bc4 {[%emt 0:00:16]} Rxa6 {[%emt 0:01:04]} 32. Qxa6 {[%emt 0:00:14]} Nc7 {[%emt 0:03:02]} 33. Bxe6+ {[%emt 0:01:28]} Kh8 {[%emt 0:00:05]} 34. Qc4 {[%emt 0:00:02]} Nxe6 {[%emt 0:00:39]} 35. Qxe6 {[%emt 0:00:02]} Qxd4 {[%emt 0:04:10]} 36. Kg2 {[%emt 0:01:33]} b3 {[%emt 0:00:54]} 37. f3 {[%emt 0:00:01]} b2 {[%emt 0:00:26]} 38. Qb3 {[%emt 0:00:01]} Qe5 {[%emt 0:00:41]} 39. Qd3 {[%emt 0:01:01]} Rb8 {[%emt 0:00:25]} 40. Qb1 {[%emt 0:00:13]} Qd5 {[%emt 0:00:24]} 41. h4 {[%emt 0:30:24]} Qc4 {[%emt 0:30:31]} 42. c6 {[%emt 0:01:00]} Qxc6 {[%emt 0:00:16]} 43. Nd2 {[%emt 0:00:54]} Qc1 {[%emt 0:00:13]} 0-1

[Event "Qatar Masters-B 2024"]
[Site "Doha"]
[Date "2024.12.11"]
[Round "8.4"]
[White "Boulrens, Ala Eddine"]
[Black "Aryan Mehta"]
[Result "1/2-1/2"]
[ECO "B22"]
[WhiteElo "2144"]
[BlackElo "1762"]
[Annotator "NA RC"]
[PlyCount "98"]
[EventDate "2024.11.24"]
[EventType "swiss"]
[EventCountry "QAT"]
[SourceTitle "playchess.com"]
[Source "ChessBase"]
[SourceQuality "1"]
[TimeControl "40/5400+30:1800+30"]

1. e4 {[%emt 0:00:04]} c5 {[%emt 0:00:13]} 2. c3 {[%emt 0:00:11]} d5 {[%emt 0:00:06]} 3. exd5 {[%emt 0:00:06]} Qxd5 {[%emt 0:00:05]} 4. d4 {[%emt 0:00:03]} Nc6 {[%emt 0:00:06]} 5. Nf3 {[%emt 0:00:04]} Bf5 {[%emt 0:00:07]} 6. Be3 {[%emt 0:00:21]} cxd4 {[%emt 0:00:13]} 7. Nxd4 {[%emt 0:00:26]} Nf6 {[%emt 0:00:07]} 8. Nxf5 {[%emt 0:00:50]} Qxf5 {[%emt 0:00:05]} 9. Nd2 {[%emt 0:00:12]} Nd5 {[%emt 0:06:56]} 10. Qa4 {[%emt 0:00:49]} Nxe3 {[%emt 0:02:28]} 11. fxe3 {[%emt 0:00:04]} Qc5 {[%emt 0:03:25]} 12. O-O-O {[%emt 0:03:35]} O-O-O {[%emt 0:02:16]} 13. Bb5 {[%emt 0:02:20]} Ne5 {[%emt 0:09:42]} 14. Nf3 {[%emt 0:15:16]} Rd6 {[%emt 0:12:33]} 15. Nxe5 {[%emt 0:30:02]} Qxe5 {[%emt 0:01:39]} 16. Bd7+ {[%emt 0:01:56]} Kb8 {[%emt 0:01:21]} 17. Qc4 {[%emt 0:00:12]} a6 {[%emt 0:05:10]} 18. Rxd6 {[%emt 0:10:08]} exd6 {[%emt 0:01:12]} 19. e4 {[%emt 0:08:00]} Be7 {[%emt 0:02:11]} 20. a3 {[%emt 0:01:30]} Rd8 {[%emt 0:01:14]} 21. Bh3 {[%emt 0:00:36]} Qf4+ {[%emt 0:01:18]} 22. Kb1 {[%emt 0:02:20]} d5 {[%emt 0:05:05]} 23. Qe2 {[%emt 0:00:07]} Qxe4+ {[%emt 0:09:58]} 24. Qxe4 {[%emt 0:00:05]} dxe4 {[%emt 0:00:02]} 25. Re1 {[%emt 0:00:22]} Bd6 {[%emt 0:02:38]} 26. Rxe4 {[%emt 0:00:15]} Bxh2 {[%emt 0:02:04]} 27. Re7 {[%emt 0:00:21]} Rf8 {[%emt 0:01:54]} 28. Bg4 {[%emt 0:00:38]} g6 {[%emt 0:02:28]} 29. Bf3 {[%emt 0:00:17]} Bc7 {[%emt 0:00:08]} 30. Bd5 {[%emt 0:00:16]} Kc8 {[%emt 0:01:55]} 31. Rxf7 {[%emt 0:01:56]} Rxf7 {[%emt 0:00:13]} 32. Bxf7 {[%emt 0:00:04]} Bg3 {[%emt 0:00:40]} 33. Kc2 {[%emt 0:00:19]} Kc7 {[%emt 0:00:28]} 34. Kd3 {[%emt 0:00:10]} Kd6 {[%emt 0:00:06]} 35. b4 {[%emt 0:01:20]} b6 {[%emt 0:00:14]} 36. Ke4 {[%emt 0:01:16]} Be1 {[%emt 0:00:17]} 37. Kd4 {[%emt 0:00:45]} g5 {[%emt 0:01:10]} 38. g4 {[%emt 0:00:21]} h6 {[%emt 0:00:13]} 39. c4 {[%emt 0:00:33]} a5 {[%emt 0:02:35]} 40. c5+ {[%emt 0:01:41]} Kc7 {[%emt 0:00:48]} 41. bxa5 {[%emt 0:30:31]} Bxa5 {[%emt 0:30:14]} 42. Kd5 {[%emt 0:00:09]} bxc5 {[%emt 0:00:10]} 43. Kxc5 {[%emt 0:00:03]} Kb7 {[%emt 0:00:22]} 44. Kb5 {[%emt 0:00:09]} Bd2 {[%emt 0:00:05]} 45. a4 {[%emt 0:00:02]} Ka7 {[%emt 0:00:06]} 46. a5 {[%emt 0:00:03]} Be3 {[%emt 0:00:03]} 47. a6 {[%emt 0:00:05]} Bd2 {[%emt 0:00:03]} 48. Bc4 {[%emt 0:00:03]} Be3 {[%emt 0:00:04]} 49. Kc6 {[%emt 0:00:04]} Bd2 {[%emt 0:00:08]} 1/2-1/2

[Event "Qatar Masters-B 2024"]
[Site "Doha"]
[Date "2024.12.11"]
[Round "8.5"]
[White "Akhmediyar, Yernur"]
[Black "Araoune, Saadi"]
[Result "1/2-1/2"]
[ECO "E62"]
[WhiteElo "1898"]
[BlackElo "2085"]
[Annotator "NA RC"]
[PlyCount "65"]
[EventDate "2024.11.24"]
[EventType "swiss"]
[EventCountry "QAT"]
[SourceTitle "playchess.com"]
[Source "ChessBase"]
[SourceQuality "1"]
[TimeControl "40/5400+30:1800+30"]

1. c4 {[%emt 0:00:10]} Nf6 {[%emt 0:00:05]} 2. Nc3 {[%emt 0:00:39]} g6 {[%emt 0:00:05]} 3. g3 {[%emt 0:00:28]} Bg7 {[%emt 0:00:11]} 4. Bg2 {[%emt 0:00:49]} O-O {[%emt 0:00:09]} 5. d4 {[%emt 0:01:13]} d6 {[%emt 0:00:07]} 6. Nf3 {[%emt 0:01:08]} c6 {[%emt 0:00:05]} 7. O-O {[%emt 0:01:49]} Bf5 {[%emt 0:00:04]} 8. Nh4 {[%emt 0:04:57]} Be6 {[%emt 0:00:30]} 9. Qd3 {[%emt 0:06:48]} d5 {[%emt 0:06:41]} 10. b3 {[%emt 0:08:39]} Qa5 {[%emt 0:05:14]} 11. cxd5 {[%emt 0:13:41]} Nxd5 {[%emt 0:03:22]} 12. Nxd5 {[%emt 0:01:29]} cxd5 {[%emt 0:00:34]} 13. e3 {[%emt 0:02:12]} Nc6 {[%emt 0:07:43]} 14. Bd2 {[%emt 0:03:12]} Qb6 {[%emt 0:02:22]} 15. Rfc1 {[%emt 0:05:03]} Rfc8 {[%emt 0:00:31]} 16. a3 {[%emt 0:09:55]} Na5 {[%emt 0:05:07]} 17. Bb4 {[%emt 0:08:31]} Nc6 {[%emt 0:06:21]} 18. Bc5 {[%emt 0:00:55]} Qd8 {[%emt 0:06:47]} 19. a4 {[%emt 0:00:50]} b6 {[%emt 0:04:51]} 20. Ba3 {[%emt 0:00:35]} Na5 {[%emt 0:00:39]} 21. Qd1 {[%emt 0:07:00]} Bf6 {[%emt 0:16:03]} 22. Nf3 {[%emt 0:01:22]} Rxc1 {[%emt 0:02:17]} 23. Rxc1 {[%emt 0:00:23]} Rc8 {[%emt 0:00:15]} 24. Nd2 {[%emt 0:02:38]} Qd7 {[%emt 0:05:57]} 25. Bf1 {[%emt 0:03:36]} Rxc1 {[%emt 0:09:08]} 26. Qxc1 {[%emt 0:00:32]} Qc6 {[%emt 0:00:56]} 27. Bb5 {[%emt 0:03:10]} Qxc1+ {[%emt 0:01:15]} 28. Bxc1 {[%emt 0:00:05]} Bc8 {[%emt 0:00:37]} 29. Ba3 {[%emt 0:03:42]} Bb7 {[%emt 0:02:16]} 30. Kf1 {[%emt 0:02:37]} Bc6 {[%emt 0:03:43]} 31. Ba6 {[%emt 0:02:27]} Bb7 {[%emt 0:00:17]} 32. Bb5 {[%emt 0:00:18]} Bc6 {[%emt 0:00:10]} 33. Ba6 {[%emt 0:00:15]} 1/2-1/2

[Event "Qatar Masters-B 2024"]
[Site "Doha"]
[Date "2024.12.11"]
[Round "8.6"]
[White "Mahmood Lodhi"]
[Black "Khalil, Manar"]
[Result "1-0"]
[ECO "D02"]
[WhiteElo "2150"]
[BlackElo "1900"]
[Annotator "RC"]
[PlyCount "121"]
[EventDate "2024.11.24"]
[EventType "swiss"]
[EventCountry "QAT"]
[SourceTitle "playchess.com"]
[Source "ChessBase"]
[SourceQuality "1"]
[TimeControl "40/5400+30:1800+30"]

1. d4 {[%emt 0:00:03]} d5 {[%emt 0:00:13]} 2. Nf3 {[%emt 0:00:08]} Nf6 {[%emt 0:00:16]} 3. g3 {[%emt 0:00:06]} e6 {[%emt 0:00:22]} 4. Bg2 {[%emt 0:00:09]} c5 {[%emt 0:00:19]} 5. O-O {[%emt 0:00:07]} Nc6 {[%emt 0:00:33]} 6. b3 {[%emt 0:00:40]} Be7 {[%emt 0:00:32]} 7. Bb2 {[%emt 0:00:21]} O-O {[%emt 0:00:28]} 8. e3 {[%emt 0:00:26]} b5 {[%emt 0:02:33]} 9. Qe2 {[%emt 0:04:51]} Rb8 {[%emt 0:01:52]} 10. Nbd2 {[%emt 0:05:30]} c4 {[%emt 0:04:20]} 11. Ne5 {[%emt 0:08:36]} Qc7 {[%emt 0:04:43]} 12. a4 {[%emt 0:09:46]} Nxe5 {[%emt 0:08:32]} 13. dxe5 {[%emt 0:00:32]} c3 {[%emt 0:05:53]} 14. exf6 {[%emt 0:02:07]} Bxf6 {[%emt 0:00:33]} 15. Ba3 {[%emt 0:07:53]} b4 {[%emt 0:05:02]} 16. Bxb4 {[%emt 0:00:47]} Rxb4 {[%emt 0:00:14]} 17. Nf3 {[%emt 0:00:07]} Qb6 {[%emt 0:05:49]} 18. Rfd1 {[%emt 0:01:14]} Ba6 {[%emt 0:05:26]} 19. Qe1 {[%emt 0:01:16]} Rc8 {[%emt 0:00:53]} 20. Bf1 {[%emt 0:05:07]} Bb7 {[%emt 0:03:33]} 21. Qe2 {[%emt 0:05:06]} e5 {[%emt 0:15:43]} 22. Ne1 {[%emt 0:07:24]} Qe6 {[%emt 0:05:50]} 23. Nd3 {[%emt 0:01:26]} Rb6 {[%emt 0:02:58]} 24. b4 {[%emt 0:04:39]} Ba8 {[%emt 0:02:28]} 25. a5 {[%emt 0:01:45]} Rbb8 {[%emt 0:00:43]} 26. Nc5 {[%emt 0:03:20]} Qc6 {[%emt 0:03:31]} 27. Rab1 {[%emt 0:11:44]} d4 {[%emt 0:02:14]} 28. e4 {[%emt 0:01:21]} Be7 {[%emt 0:01:53]} 29. Na6 {[%emt 0:01:08]} Rb7 {[%emt 0:03:03]} 30. b5 {[%emt 0:03:06]} Qe6 {[%emt 0:01:06]} 31. Qh5 {[%emt 0:00:41]} g6 {[%emt 0:01:35]} 32. Qh3 {[%emt 0:00:22]} Qxh3 {[%emt 0:01:04]} 33. Bxh3 {[%emt 0:00:02]} Rd8 {[%emt 0:01:00]} 34. Bf1 {[%emt 0:01:31]} Rbd7 {[%emt 0:02:55]} 35. Bd3 {[%emt 0:00:15]} Kg7 {[%emt 0:00:56]} 36. Nb4 {[%emt 0:00:09]} Rc8 {[%emt 0:01:31]} 37. f3 {[%emt 0:01:12]} h5 {[%emt 0:00:51]} 38. Kg2 {[%emt 0:01:39]} h4 {[%emt 0:00:38]} 39. Nc6 {[%emt 0:03:10]} Bd6 {[%emt 0:01:49]} 40. Nb4 {[%emt 0:00:50]} f6 {[%emt 0:02:03]} 41. a6 {[%emt 0:30:55]} hxg3 {[%emt 0:30:37]} 42. hxg3 {[%emt 0:00:01]} Rdd8 {[%emt 0:02:14]} 43. Na2 {[%emt 0:01:15]} Rb8 {[%emt 0:00:53]} 44. Nc1 {[%emt 0:00:31]} Bc6 {[%emt 0:00:16]} 45. Ne2 {[%emt 0:00:40]} Bd7 {[%emt 0:00:34]} 46. Rh1 {[%emt 0:01:33]} Bc5 {[%emt 0:01:12]} 47. Rh2 {[%emt 0:00:26]} Rh8 {[%emt 0:00:07]} 48. Rxh8 {[%emt 0:00:28]} Kxh8 {[%emt 0:00:18]} 49. g4 {[%emt 0:00:56]} Be6 {[%emt 0:01:05]} 50. Kg3 {[%emt 0:00:24]} Rb6 {[%emt 0:00:41]} 51. f4 {[%emt 0:00:17]} Ba3 {[%emt 0:00:34]} 52. f5 {[%emt 0:00:27]} Bg8 {[%emt 0:01:11]} 53. fxg6 {[%emt 0:01:13]} Kg7 {[%emt 0:00:30]} 54. Kf3 {[%emt 0:00:09]} Bb2 {[%emt 0:00:40]} 55. Ng3 {[%emt 0:00:33]} Kxg6 {[%emt 0:00:32]} 56. Nf5 {[%emt 0:00:11]} Rb8 {[%emt 0:00:31]} 57. Ne7+ {[%emt 0:01:58]} Kg7 {[%emt 0:00:13]} 58. Nc6 {[%emt 0:00:10]} Ra8 {[%emt 0:00:37]} 59. Nxa7 {[%emt 0:00:07]} Be6 {[%emt 0:00:42]} 60. b6 {[%emt 0:00:24]} Bc8 {[%emt 0:00:32]} 61. Nxc8 {[%emt 0:00:25]} 1-0

[Event "Qatar Masters-B 2024"]
[Site "Doha"]
[Date "2024.12.11"]
[Round "8.7"]
[White "Ali, Abdulaziz"]
[Black "Albadri Sattar"]
[Result "0-1"]
[ECO "C02"]
[WhiteElo "1978"]
[BlackElo "2139"]
[Annotator "NA RC"]
[PlyCount "66"]
[EventDate "2024.11.24"]
[EventType "swiss"]
[EventCountry "QAT"]
[SourceTitle "playchess.com"]
[Source "ChessBase"]
[SourceQuality "1"]
[TimeControl "40/5400+30:1800+30"]

1. e4 {[%emt 0:00:10]} e6 {[%emt 0:00:43]} 2. d4 {[%emt 0:00:07]} d5 {[%emt 0:00:33]} 3. e5 {[%emt 0:00:17]} c5 {[%emt 0:00:08]} 4. c3 {[%emt 0:00:06]} Qb6 {[%emt 0:00:07]} 5. Nf3 {[%emt 0:00:11]} Nc6 {[%emt 0:00:07]} 6. Bd3 {[%emt 0:01:40]} cxd4 {[%emt 0:00:13]} 7. O-O {[%emt 0:03:19]} Bd7 {[%emt 0:01:50]} 8. Bc2 {[%emt 0:16:17]} dxc3 {[%emt 0:02:11]} 9. Nxc3 {[%emt 0:00:04]} Nb4 {[%emt 0:00:29]} 10. Bb1 {[%emt 0:00:13]} Rc8 {[%emt 0:04:31]} 11. Be3 {[%emt 0:07:47]} Bc5 {[%emt 0:09:01]} 12. Bxc5 {[%emt 0:02:02]} Qxc5 {[%emt 0:03:54]} 13. Nd4 {[%emt 0:03:40]} Ne7 {[%emt 0:02:37]} 14. Kh1 {[%emt 0:02:39]} Qc4 {[%emt 0:13:10]} 15. f4 {[%emt 0:06:11]} O-O {[%emt 0:06:05]} 16. a3 {[%emt 0:12:02]} Nbc6 {[%emt 0:02:47]} 17. Ndb5 {[%emt 0:01:49]} Qc5 {[%emt 0:16:27]} 18. Nd6 {[%emt 0:02:19]} Rb8 {[%emt 0:00:57]} 19. Bxh7+ {[%emt 0:20:49]} Kxh7 {[%emt 0:01:09]} 20. Qh5+ {[%emt 0:01:48]} Kg8 {[%emt 0:00:02]} 21. Rf3 {[%emt 0:02:54]} Ng6 {[%emt 0:00:22]} 22. b4 {[%emt 0:11:48]} Qd4 {[%emt 0:10:07]} 23. Rd1 {[%emt 0:03:03]} Nxf4 {[%emt 0:00:10]} 24. Qg4 {[%emt 0:00:42]} Qxe5 {[%emt 0:01:15]} 25. Qxf4 {[%emt 0:00:23]} Qxf4 {[%emt 0:00:11]} 26. Rxf4 {[%emt 0:00:01]} a6 {[%emt 0:00:25]} 27. Nde4 {[%emt 0:00:16]} dxe4 {[%emt 0:02:39]} 28. Rxd7 {[%emt 0:00:02]} Ne5 {[%emt 0:00:12]} 29. Rd1 {[%emt 0:01:08]} Nd3 {[%emt 0:00:55]} 30. Rff1 {[%emt 0:00:19]} f5 {[%emt 0:00:18]} 31. g3 {[%emt 0:00:46]} Rfd8 {[%emt 0:00:14]} 32. h4 {[%emt 0:00:41]} Rbc8 {[%emt 0:00:26]} 33. Ne2 {[%emt 0:00:11]} Nf2+ {[%emt 0:00:18]} 0-1

[Event "Qatar Masters-B 2024"]
[Site "Doha"]
[Date "2024.12.11"]
[Round "8.8"]
[White "Gyana Sai Santhosh M"]
[Black "Elarcosa, Rommel T."]
[Result "1-0"]
[ECO "A48"]
[WhiteElo "2090"]
[BlackElo "1645"]
[Annotator "NA RC"]
[PlyCount "91"]
[EventDate "2024.11.24"]
[EventType "swiss"]
[EventCountry "QAT"]
[SourceTitle "playchess.com"]
[Source "ChessBase"]
[SourceQuality "1"]
[TimeControl "40/5400+30:1800+30"]

1. Nf3 {[%emt 0:00:30]} c5 {[%emt 0:00:14]} 2. e3 {[%emt 0:04:22]} g6 {[%emt 0:00:47]} 3. d4 {[%emt 0:00:52]} Bg7 {[%emt 0:02:16]} 4. Be2 {[%emt 0:12:25]} Nf6 {[%emt 0:01:54]} 5. O-O {[%emt 0:02:09]} b6 {[%emt 0:02:29]} 6. d5 {[%emt 0:03:25]} d6 {[%emt 0:00:23]} 7. Nc3 {[%emt 0:01:36]} O-O {[%emt 0:00:41]} 8. e4 {[%emt 0:01:12]} h6 {[%emt 0:03:58]} 9. Re1 {[%emt 0:09:08]} Re8 {[%emt 0:00:15]} 10. e5 {[%emt 0:08:53]} dxe5 {[%emt 0:04:22]} 11. Nxe5 {[%emt 0:01:28]} Bb7 {[%emt 0:05:10]} 12. Bb5 {[%emt 0:03:45]} Rf8 {[%emt 0:09:02]} 13. Bc4 {[%emt 0:08:09]} b5 {[%emt 0:16:07]} 14. Nxb5 {[%emt 0:01:12]} Bxd5 {[%emt 0:06:37]} 15. Bxd5 {[%emt 0:02:23]} Nxd5 {[%emt 0:00:10]} 16. Qf3 {[%emt 0:03:02]} a6 {[%emt 0:01:49]} 17. Na3 {[%emt 0:02:39]} Nb6 {[%emt 0:10:05]} 18. Ng4 {[%emt 0:07:34]} Kh7 {[%emt 0:00:42]} 19. Bxh6 {[%emt 0:06:50]} Qd5 {[%emt 0:16:34]} 20. Qh3 {[%emt 0:04:06]} Qh5 {[%emt 0:01:36]} 21. Bxg7 {[%emt 0:00:09]} Qxh3 {[%emt 0:01:03]} 22. gxh3 {[%emt 0:00:01]} Kxg7 {[%emt 0:00:11]} 23. Rxe7 {[%emt 0:00:04]} Nc6 {[%emt 0:00:58]} 24. Rc7 {[%emt 0:00:57]} Rac8 {[%emt 0:00:14]} 25. Rxc8 {[%emt 0:00:13]} Rxc8 {[%emt 0:00:12]} 26. Rd1 {[%emt 0:00:23]} Nd4 {[%emt 0:01:02]} 27. c3 {[%emt 0:02:16]} Nf5 {[%emt 0:00:36]} 28. Ne3 {[%emt 0:01:10]} Nh4 {[%emt 0:00:26]} 29. Rd6 {[%emt 0:02:13]} Rb8 {[%emt 0:01:28]} 30. b3 {[%emt 0:00:30]} Rb7 {[%emt 0:00:46]} 31. f4 {[%emt 0:02:45]} Nc8 {[%emt 0:01:15]} 32. Rd8 {[%emt 0:01:25]} Ne7 {[%emt 0:00:32]} 33. Nac4 {[%emt 0:00:11]} Ng8 {[%emt 0:01:35]} 34. Kf2 {[%emt 0:00:58]} Nf6 {[%emt 0:00:55]} 35. Kg3 {[%emt 0:00:58]} Nf5+ {[%emt 0:00:19]} 36. Nxf5+ {[%emt 0:00:01]} gxf5 {[%emt 0:00:09]} 37. Nd6 {[%emt 0:00:15]} Ne4+ {[%emt 0:03:09]} 38. Kf3 {[%emt 0:00:21]} Nxd6 {[%emt 0:01:24]} 39. Rxd6 {[%emt 0:00:07]} c4 {[%emt 0:01:25]} 40. b4 {[%emt 0:01:08]} a5 {[%emt 0:00:46]} 41. bxa5 {[%emt 0:31:16]} Rb5 {[%emt 0:30:38]} 42. a6 {[%emt 0:00:20]} Ra5 {[%emt 0:00:20]} 43. Ke3 {[%emt 0:00:07]} Rxa2 {[%emt 0:00:15]} 44. Kd4 {[%emt 0:00:14]} Rd2+ {[%emt 0:02:09]} 45. Kc5 {[%emt 0:00:19]} Rxh2 {[%emt 0:01:16]} 46. a7 {[%emt 0:00:28]} 1-0